[Event "WYCC 2018 O14"]
[Site "Halkidiki"]
[Date "2018.10.20"]
[Round "1"]
[White "Tsoi, Dmitry"]
[Black "Misyura, Ilya"]
[Result "1-0"]
[ECO "A05"]
[WhiteElo "2429"]
[BlackElo "1967"]
[Annotator "ChessBase"]
[PlyCount "109"]
[EventDate "2018.10.20"]
[EventType "swiss"]
[EventCountry "GRE"]
[SourceTitle "playchess.com"]
[Source "ChessBase"]
[SourceQuality "1"]
[TimeControl "40/5400+30:1800+30"]

1. Nf3 {[%emt 0:00:00]} Nf6 {[%emt 0:00:00]} 2. c4 {[%emt 0:00:00]} g6 {[%emt 0:00:00]} 3. g3 {[%emt 0:00:00]} Bg7 {[%emt 0:00:00]} 4. Bg2 {[%emt 0:00:00]} O-O {[%emt 0:00:01]} 5. O-O {[%emt 0:00:00]} d6 {[%emt 0:00:07]} 6. Nc3 {[%emt 0:00:04]} Nc6 {[%emt 0:00:11]} 7. d3 {[%emt 0:00:23]} e5 {[%emt 0:00:31]} 8. Rb1 {[%emt 0:00:06]} a5 {[%emt 0:01:02]} 9. a3 {[%emt 0:00:08]} Nd4 {[%emt 0:00:50]} 10. b4 {[%emt 0:00:14]} axb4 {[%emt 0:00:36]} 11. axb4 {[%emt 0:00:05]} c6 {[%emt 0:00:25]} 12. b5 {[%emt 0:03:34]} Bg4 {[%emt 0:07:56]} 13. Nxd4 {[%emt 0:09:17]} exd4 {[%emt 0:00:09]} 14. Ne4 {[%emt 0:00:02]} Nxe4 {[%emt 0:01:39]} 15. Bxe4 {[%emt 0:00:15]} d5 {[%emt 0:01:10]} 16. cxd5 {[%emt 0:01:03]} cxd5 {[%emt 0:00:19]} 17. Bg2 {[%emt 0:00:16]} Qd7 {[%emt 0:06:05]} 18. Re1 {[%emt 0:02:52]} Rfe8 {[%emt 0:04:14]} 19. Bf4 {[%emt 0:09:51]} Ra2 {[%emt 0:16:13]} 20. Bf1 {[%emt 0:01:14]} Rc8 {[%emt 0:06:56]} 21. Qb3 {[%emt 0:04:04]} Rcc2 {[%emt 0:24:42]} 22. Ra1 {[%emt 0:01:30]} Rcb2 {[%emt 0:06:40]} 23. Qxa2 {[%emt 0:01:15]} Rxa2 {[%emt 0:00:05]} 24. Rxa2 {[%emt 0:00:05]} h5 {[%emt 0:01:07]} 25. Rb1 {[%emt 0:00:55]} Bf6 {[%emt 0:05:13]} 26. Bg2 {[%emt 0:02:56]} g5 {[%emt 0:03:20]} 27. Bb8 {[%emt 0:05:33]} Be6 {[%emt 0:02:16]} 28. Rc2 {[%emt 0:04:22]} Qd8 {[%emt 0:00:36]} 29. Bc7 {[%emt 0:01:17]} Qa8 {[%emt 0:00:45]} 30. b6 {[%emt 0:20:55]} Qa3 {[%emt 0:02:50]} 31. Rcc1 {[%emt 0:01:43]} Qa2 {[%emt 0:01:16]} 32. Re1 {[%emt 0:00:49]} Qc2 {[%emt 0:01:36]} 33. Kf1 {[%emt 0:05:22]} Kh7 {[%emt 0:02:41]} 34. Rb5 {[%emt 0:00:53]} Qc6 {[%emt 0:00:25]} 35. Rbb1 {[%emt 0:01:10]} Qc2 {[%emt 0:00:24]} 36. Rbc1 {[%emt 0:00:06]} Qa4 {[%emt 0:00:26]} 37. Ra1 {[%emt 0:01:15]} Qc6 {[%emt 0:00:04]} 38. Rec1 {[%emt 0:00:11]} Qe8 {[%emt 0:02:09]} 39. Ra5 {[%emt 0:00:29]} Qd7 {[%emt 0:00:42]} 40. Ra7 {[%emt 0:00:00]} Qc8 {[%emt 0:00:00]} 41. Rc5 {[%emt 0:03:01]} Be7 {[%emt 0:07:46]} 42. Rxd5 {[%emt 0:01:52]} Bxd5 {[%emt 0:03:56]} 43. Bxd5 {[%emt 0:00:08]} Bc5 {[%emt 0:02:12]} 44. Bxb7 {[%emt 0:03:15]} Qh3+ {[%emt 0:00:27]} 45. Bg2 {[%emt 0:00:44]} Qe6 {[%emt 0:02:24]} 46. Ra6 {[%emt 0:00:42]} Qb3 {[%emt 0:00:14]} 47. Be4+ {[%emt 0:00:06]} f5 {[%emt 0:01:29]} 48. Bxf5+ {[%emt 0:07:18]} Kg8 {[%emt 0:01:19]} 49. Be4 {[%emt 0:00:09]} Bxb6 {[%emt 0:01:26]} 50. Rxb6 {[%emt 0:00:14]} Qd1+ {[%emt 0:00:11]} 51. Kg2 {[%emt 0:00:05]} Qc1 {[%emt 0:00:54]} 52. Rc6 {[%emt 0:00:06]} Qe1 {[%emt 0:00:21]} 53. Rg6+ {[%emt 0:00:09]} Kf7 {[%emt 0:00:04]} 54. Rxg5 {[%emt 0:00:13]} Qxe2 {[%emt 0:00:09]} 55. h4 {[%emt 0:00:08]} 1-0

[Event "WYCC 2018 O14"]
[Site "Halkidiki"]
[Date "2018.10.20"]
[Round "1"]
[White "Spyropoulos, Nikolaos"]
[Black "Shermuhammadov, Samandar"]
[Result "0-1"]
[ECO "B06"]
[WhiteElo "2378"]
[BlackElo "1962"]
[Annotator "NA"]
[PlyCount "116"]
[EventDate "2018.10.20"]
[EventType "swiss"]
[EventCountry "GRE"]
[SourceTitle "playchess.com"]
[Source "ChessBase"]
[SourceQuality "1"]
[TimeControl "40/5400+30:1800+30"]

1. e4 {[%emt 0:00:00]} g6 {[%emt 0:00:00]} 2. d4 {[%emt 0:00:00]} Bg7 {[%emt 0:00:00]} 3. Nc3 {[%emt 0:00:10]} c6 {[%emt 0:01:12]} 4. Bc4 {[%emt 0:04:45]} d6 {[%emt 0:02:10]} 5. Nf3 {[%emt 0:08:38]} Nf6 {[%emt 0:00:44]} 6. Bb3 {[%emt 0:01:49]} O-O {[%emt 0:01:07]} 7. O-O {[%emt 0:00:40]} Bg4 {[%emt 0:03:04] LiveBook: 50 Games B08: Pirc Defence: Classical System} 8. Bg5 {[%emt 0:09:33]} Nbd7 {[%emt 0:03:20]} 9. h3 {[%emt 0:05:27]} Bxf3 {[%emt 0:00:15]} 10. Qxf3 {[%emt 0:00:05]} e5 {[%emt 0:00:38]} (10... Qa5 11. Be3 Rab8 12. Rfd1 c5 13. dxc5 Nxc5 14. Bd4 Ncd7 15. Qe2 a6 16. Nd5 Nxd5 17. exd5 Rfe8 {1-0 (77) Amonatov,F (2608)-Rahman,Z (2495) Bhubaneswar 2018}) 11. Rad1 {[%emt 0:03:19]} Qc7 $146 {[%emt 0:00:37]} ({Predecessor:} 11... h6 12. Bh4 Qe8 13. dxe5 Nxe5 14. Qe3 g5 15. Bg3 Nh5 16. Rxd6 Nxg3 17. Qxg3 Qe7 {1-0 (40) Ma,Q (2481)-Djuraev,S (2375) Ho Chi Minh City 2012}) 12. dxe5 {[%emt 0:08:45]} dxe5 {[%emt 0:00:19]} 13. Rd2 {[%emt 0:00:30]} h6 {[%emt 0:02:49]} 14. Bh4 {[%emt 0:04:54]} b5 {[%emt 0:11:43]} 15. Rfd1 {[%emt 0:05:55]} a5 {[%emt 0:06:27]} 16. a3 {[%emt 0:06:07]} b4 {[%emt 0:04:54]} 17. Na4 {[%emt 0:01:15]} c5 {[%emt 0:01:09]} 18. Bc4 {[%emt 0:05:31]} Rad8 {[%emt 0:02:09]} 19. Rd6 {[%emt 0:03:52]} g5 {[%emt 0:31:29]} 20. Bg3 {[%emt 0:00:08]} Ne8 {[%emt 0:03:10]} 21. R6d2 {[%emt 0:01:50]} Nef6 {[%emt 0:02:01]} 22. h4 {[%emt 0:12:13]} Qc6 {[%emt 0:05:46]} 23. b3 {[%emt 0:01:33]} Nxe4 {[%emt 0:01:41]} 24. Rd3 {[%emt 0:07:08]} g4 {[%emt 0:05:08]} 25. Qxg4 {[%emt 0:02:32]} Nef6 {[%emt 0:02:03]} 26. Qf5 {[%emt 0:00:47]} Qc7 {[%emt 0:01:49]} 27. axb4 {[%emt 0:01:00]} cxb4 {[%emt 0:00:48]} 28. h5 {[%emt 0:00:56]} Qc8 {[%emt 0:02:43]} 29. Qh3 {[%emt 0:04:34]} Nb8 {[%emt 0:02:41]} 30. Bxe5 {[%emt 0:00:29]} Qxh3 {[%emt 0:00:10]} 31. gxh3 {[%emt 0:00:03]} Rxd3 {[%emt 0:01:02]} 32. Rxd3 {[%emt 0:00:13]} Nxh5 {[%emt 0:00:29]} 33. Bxg7 {[%emt 0:01:13]} Kxg7 {[%emt 0:00:05]} 34. Rd5 {[%emt 0:00:17]} Nf4 {[%emt 0:00:06]} 35. Rxa5 {[%emt 0:00:03]} Nxh3+ {[%emt 0:00:20]} 36. Kg2 {[%emt 0:00:36]} Nf4+ {[%emt 0:00:06]} 37. Kg3 {[%emt 0:00:05]} Ng6 {[%emt 0:00:44]} 38. Nc5 {[%emt 0:01:11]} Nc6 {[%emt 0:01:07]} 39. Ra6 {[%emt 0:00:46]} Nd4 {[%emt 0:00:42]} 40. Ra7 {[%emt 0:00:00]} Ne5 {[%emt 0:00:00]} 41. Ne6+ {[%emt 0:08:14]} Nxe6 {[%emt 0:01:20]} 42. Bxe6 {[%emt 0:00:04]} Kf6 {[%emt 0:00:27]} 43. Bd5 {[%emt 0:00:10]} Kf5 {[%emt 0:02:08]} 44. f3 {[%emt 0:01:02]} Rg8+ {[%emt 0:00:39]} 45. Kf2 {[%emt 0:00:09]} Rc8 {[%emt 0:04:31]} 46. Rb7 {[%emt 0:15:33]} Rxc2+ $11 {[%emt 0:00:45]} 47. Kg3 {[%emt 0:00:03]} Rc3 {[%emt 0:04:03]} 48. Rxb4 {[%emt 0:00:07]} h5 {[%emt 0:01:19]} 49. Rd4 {[%emt 0:05:10]} Kg5 {[%emt 0:04:36]} 50. Kf2 {[%emt 0:01:34]} Nd3+ {[%emt 0:04:22]} 51. Kg3 {[%emt 0:00:27]} f5 {[%emt 0:00:37]} 52. b4 {[%emt 0:01:24]} h4+ {[%emt 0:01:11]} 53. Kh2 {[%emt 0:02:06]} Rc2+ {[%emt 0:00:21]} 54. Kh1 {[%emt 0:00:24]} Rd2 {[%emt 0:01:32]} 55. Kg1 {[%emt 0:00:19]} h3 {[%emt 0:01:28]} 56. f4+ {[%emt 0:00:07]} Kg4 {[%emt 0:00:14]} 57. Bc4 {[%emt 0:02:12]} h2+ {[%emt 0:00:23]} 58. Kh1 {[%emt 0:00:08]} Nf2+ {[%emt 0:00:06]} 0-1

[Event "WYCC 2018 O14"]
[Site "Halkidiki"]
[Date "2018.10.20"]
[Round "1"]
[White "Pogosyan, Stefan"]
[Black "Dao, Minh Nhat"]
[Result "1-0"]
[ECO "D78"]
[WhiteElo "2373"]
[BlackElo "1956"]
[Annotator "NA"]
[PlyCount "73"]
[EventDate "2018.10.20"]
[EventType "swiss"]
[EventCountry "GRE"]
[SourceTitle "playchess.com"]
[Source "ChessBase"]
[SourceQuality "1"]
[TimeControl "40/5400+30:1800+30"]

1. d4 {[%emt 0:00:00]} Nf6 {[%emt 0:00:00]} 2. c4 {[%emt 0:00:00]} g6 {[%emt 0:00:12]} 3. g3 {[%emt 0:00:00]} Bg7 {[%emt 0:00:20]} 4. Bg2 {[%emt 0:00:02]} d5 {[%emt 0:01:43]} 5. Nf3 {[%emt 0:00:30]} O-O {[%emt 0:01:03]} 6. O-O {[%emt 0:00:16]} c6 {[%emt 0:02:48]} 7. b3 {[%emt 0:01:11]} Bf5 {[%emt 0:02:55]} 8. Bb2 {[%emt 0:01:02]} a5 {[%emt 0:04:14]} 9. Nbd2 {[%emt 0:03:26]} Ne4 {[%emt 0:02:00]} 10. Nh4 {[%emt 0:14:34]} Nxd2 {[%emt 0:02:16]} 11. Qxd2 {[%emt 0:00:28]} Be6 {[%emt 0:02:50]} 12. cxd5 {[%emt 0:02:49] D78: Fianchetto Grünfeld: 6 0-0 c6} (12. Rfc1 a4 13. Qb4 axb3 14. axb3 Rxa1 15. Bxa1 dxc4 16. bxc4 Bxd4 17. Bxd4 Qxd4 18. Qxb7 Qd2 19. Rb1 Nd7 20. Qxc6 Qxe2 {½-½ (27) Almasi,Z (2702)-Fressinet,L (2676) Germany 2017}) 12... cxd5 {[%emt 0:01:30]} 13. Nf3 {[%emt 0:00:41]} Nc6 {[%emt 0:01:31]} 14. Ne5 {[%emt 0:02:54] [#]} Qd6 $146 {[%emt 0:21:01]} ({Predecessor:} 14... a4 15. Nxc6 bxc6 16. Ba3 Re8 17. Bc5 Bf5 18. e3 e5 19. dxe5 Bxe5 {½-½ (41) Pavlovic,M (2477)-Vuckovic,B (2576) Montenegro 2017}) 15. Nxc6 {[%emt 0:02:19]} bxc6 {[%emt 0:01:58]} 16. Rfc1 {[%emt 0:05:30]} a4 {[%emt 0:13:57]} 17. b4 {[%emt 0:09:07]} a3 {[%emt 0:03:24]} 18. Bc3 {[%emt 0:01:21]} Bf5 {[%emt 0:00:46]} 19. b5 {[%emt 0:10:50]} cxb5 {[%emt 0:02:48]} 20. Bb4 {[%emt 0:00:22]} Qd7 {[%emt 0:00:58]} 21. Rc5 {[%emt 0:00:30]} Be6 $14 {[%emt 0:05:25]} 22. Rac1 {[%emt 0:02:12]} Rfc8 {[%emt 0:14:02]} 23. e3 {[%emt 0:10:18]} Bf6 {[%emt 0:02:21]} 24. Bxa3 {[%emt 0:06:32]} Rxc5 {[%emt 0:00:59]} 25. Bxc5 {[%emt 0:00:07]} Bh3 {[%emt 0:01:09]} 26. a3 {[%emt 0:01:08]} Bxg2 {[%emt 0:01:31]} 27. Kxg2 {[%emt 0:00:05]} h5 {[%emt 0:00:07]} 28. h3 {[%emt 0:02:25]} e6 {[%emt 0:02:55]} 29. Qb4 {[%emt 0:04:32]} Ra4 {[%emt 0:00:46]} 30. Qb3 {[%emt 0:00:19]} e5 {[%emt 0:04:27]} 31. dxe5 {[%emt 0:03:42]} Bxe5 {[%emt 0:00:00]} 32. Bb4 {[%emt 0:00:45]} Bg7 {[%emt 0:01:36]} 33. Rd1 {[%emt 0:01:47]} d4 {[%emt 0:00:49]} 34. exd4 {[%emt 0:00:13]} Bxd4 {[%emt 0:00:52]} 35. Qf3 {[%emt 0:01:06]} Ra6 {[%emt 0:01:27]} 36. Qe4 {[%emt 0:00:20]} Rf6 {[%emt 0:00:45]} 37. Rxd4 {[%emt 0:00:21]} 1-0

[Event "WYCC 2018 O14"]
[Site "Halkidiki"]
[Date "2018.10.20"]
[Round "1"]
[White "Stoyanov, Tsvetan"]
[Black "Bolognese, Leonardo"]
[Result "0-1"]
[ECO "C03"]
[WhiteElo "2340"]
[BlackElo "1947"]
[Annotator "NA"]
[PlyCount "84"]
[EventDate "2018.10.20"]
[EventType "swiss"]
[EventCountry "GRE"]
[SourceTitle "playchess.com"]
[Source "ChessBase"]
[SourceQuality "1"]
[TimeControl "40/5400+30:1800+30"]

1. e4 {[%emt 0:00:00]} e6 {[%emt 0:00:00]} 2. d4 {[%emt 0:02:12]} d5 {[%emt 0:00:13]} 3. Nd2 {[%emt 0:00:07]} h6 {[%emt 0:01:11] C03: Französische Verteidigung (Tarrasch-Variante)} (3... c5 4. exd5 Qxd5 5. Ngf3 cxd4 6. Bc4 Qd6 7. O-O Nf6 8. Nb3 Nc6 9. Nbxd4 Nxd4 10. Nxd4 a6 11. Re1 Qc7 12. Bf1 Be7 13. Qf3 O-O 14. Bf4 Bd6 15. Bxd6 Qxd6 16. Rad1 Qc7 17. c4 Rb8 18. Qg3 Qxg3 19. hxg3 Bd7 {½-½ (61) Karjakin,S (2773)-Duda,J (2737) chess.com INT 2018}) 4. Ngf3 {[%emt 0:04:37]} Nf6 {[%emt 0:02:06]} 5. Bd3 {[%emt 0:02:06]} c5 {[%emt 0:00:43]} 6. exd5 {[%emt 0:06:44]} exd5 {[%emt 0:02:22]} 7. dxc5 {[%emt 0:08:24]} Bxc5 {[%emt 0:01:06]} 8. O-O {[%emt 0:03:08]} O-O {[%emt 0:00:15]} 9. h3 {[%emt 0:03:15]} Qd6 {[%emt 0:02:46]} 10. Nb3 {[%emt 0:08:15]} Bb6 {[%emt 0:00:50]} 11. Nfd4 $146 {[%emt 0:02:51]} ({Vorgänger:} 11. Nbd4 Nc6 12. Nb5 Qb8 13. c3 Bxh3 14. gxh3 Qg3+ 15. Kh1 Qxh3+ {1-0 (39) Amer,S (2016)-Itgelt,K (2014) Cagliari 2018}) 11... Nc6 {[%emt 0:10:11]} 12. Be3 {[%emt 0:01:09]} Bc7 {[%emt 0:00:38]} 13. f4 {[%emt 0:06:52]} Ne4 {[%emt 0:11:39]} 14. Nb5 {[%emt 0:06:50]} Qd8 {[%emt 0:11:17]} 15. Nxc7 {[%emt 0:05:32]} Qxc7 {[%emt 0:01:43]} 16. c3 {[%emt 0:07:02]} Re8 {[%emt 0:08:32]} 17. Qf3 {[%emt 0:02:31]} f5 {[%emt 0:03:09]} 18. Rad1 {[%emt 0:03:20]} Be6 {[%emt 0:02:18]} 19. g4 {[%emt 0:07:00]} Qf7 {[%emt 0:09:29]} 20. Kh2 $19 {[%emt 0:02:50]} (20. Nd4 $11) 20... fxg4 {[%emt 0:03:45]} 21. hxg4 {[%emt 0:00:01]} Bxg4 {[%emt 0:00:45]} 22. Qxg4 {[%emt 0:03:05]} Nf6 {[%emt 0:00:28]} 23. Qh4 {[%emt 0:08:47]} Rxe3 {[%emt 0:02:22]} 24. Rd2 {[%emt 0:01:47]} Qe7 {[%emt 0:07:35]} 25. Rg1 {[%emt 0:02:13]} Ne4 {[%emt 0:06:43]} 26. Qxh6 {[%emt 0:01:07]} Ne5 {[%emt 0:08:47]} 27. Bxe4 {[%emt 0:00:42]} Rxe4 {[%emt 0:00:06]} 28. Nd4 {[%emt 0:00:50]} Rxd4 {[%emt 0:00:38]} 29. Rxd4 {[%emt 0:00:35]} Nf3+ {[%emt 0:00:07]} 30. Kh1 {[%emt 0:00:13]} Nxg1 {[%emt 0:00:12]} 31. Qh5 {[%emt 0:00:37]} Ne2 {[%emt 0:01:05]} 32. Qxd5+ {[%emt 0:00:40]} Qf7 {[%emt 0:00:12]} 33. Qxf7+ {[%emt 0:00:10]} Kxf7 {[%emt 0:00:08]} 34. Rd7+ {[%emt 0:00:52]} Kf6 {[%emt 0:00:09]} 35. Rxb7 {[%emt 0:00:14]} Nxf4 {[%emt 0:00:12]} 36. b4 {[%emt 0:00:50]} g5 {[%emt 0:00:26]} 37. c4 {[%emt 0:00:21]} Rh8+ {[%emt 0:01:39]} 38. Kg1 {[%emt 0:00:01]} g4 {[%emt 0:00:22]} 39. Kf2 {[%emt 0:00:35]} Rh3 {[%emt 0:00:21]} 40. Rb8 {[%emt 0:00:00]} g3+ {[%emt 0:00:00]} 41. Kg1 {[%emt 0:00:52]} g2 {[%emt 0:01:35]} 42. Rf8+ {[%emt 0:00:11]} Ke5 {[%emt 0:00:17]} 0-1

[Event "WYCC 2018 O14"]
[Site "Halkidiki"]
[Date "2018.10.20"]
[Round "1"]
[White "Huang, Renjie"]
[Black "Horobrijs, Daniils"]
[Result "1-0"]
[ECO "B90"]
[WhiteElo "2322"]
[BlackElo "1918"]
[Annotator "NA"]
[PlyCount "65"]
[EventDate "2018.10.20"]
[EventType "swiss"]
[EventCountry "GRE"]
[SourceTitle "playchess.com"]
[Source "ChessBase"]
[SourceQuality "1"]
[TimeControl "40/5400+30:1800+30"]

1. e4 {[%emt 0:00:00]} c5 {[%emt 0:00:00]} 2. Nf3 {[%emt 0:00:00]} d6 {[%emt 0:00:00]} 3. d4 {[%emt 0:00:00]} cxd4 {[%emt 0:00:00]} 4. Nxd4 {[%emt 0:00:00]} Nf6 {[%emt 0:00:00]} 5. Nc3 {[%emt 0:00:00]} a6 {[%emt 0:00:00]} 6. Bc4 {[%emt 0:00:04]} e6 {[%emt 0:00:05]} 7. O-O {[%emt 0:00:05]} b5 {[%emt 0:00:07]} 8. Bb3 {[%emt 0:00:07]} Be7 {[%emt 0:00:08]} 9. Qf3 {[%emt 0:00:28]} Qb6 {[%emt 0:00:05]} 10. Be3 {[%emt 0:02:47]} Qb7 {[%emt 0:00:09]} 11. Qg3 {[%emt 0:01:24]} b4 {[%emt 0:00:07]} 12. Na4 {[%emt 0:00:18]} Nbd7 {[%emt 0:00:13]} 13. f3 {[%emt 0:01:10]} O-O {[%emt 0:00:10]} 14. Rad1 {[%emt 0:01:46]} Ne5 {[%emt 0:00:20] B87: Sicilian Scheveningen/Najdorf: 6 Bc4, with early ...b5} (14... Kh8 15. Rfe1 Rb8 16. Kh1 Ne5 17. Ne2 Qc7 18. c3 Bd7 19. Nf4 Bxa4 20. Bxa4 bxc3 21. bxc3 Qxc3 22. Bd4 {0-1 (39) Short,N (2665)-Kasparov,G (2815) London 1993}) 15. Ne2 {[%emt 0:08:01]} a5 {[%emt 0:01:25]} 16. Bd4 {[%emt 0:03:48]} Qb5 $146 {[%emt 0:25:58]} (16... Bd7 $15) ({Predecessor:} 16... Ned7 17. Bc4 Qc6 18. b3 Ba6 19. Bxa6 Qxa6 20. Rd2 Rac8 21. Nc1 Rc6 22. Nd3 {½-½ (30) Nevioselaya,M (1992)-Kusenkova,N (2003) Minsk 2012}) 17. Nb6 {[%emt 0:07:03]} Rb8 {[%emt 0:06:29]} 18. c4 {[%emt 0:00:41]} Qa6 {[%emt 0:02:29]} 19. Qf2 {[%emt 0:03:01]} Rxb6 {[%emt 0:11:49]} 20. Bxb6 {[%emt 0:00:03]} Neg4 {[%emt 0:00:30]} 21. fxg4 {[%emt 0:00:32]} Nxg4 {[%emt 0:00:08]} 22. Qf3 {[%emt 0:00:41]} Qxb6+ {[%emt 0:00:12]} 23. Kh1 {[%emt 0:00:05]} Ne3 {[%emt 0:00:10]} 24. c5 {[%emt 0:02:14]} Qxc5 {[%emt 0:01:22]} 25. Rc1 {[%emt 0:00:09]} Qg5 {[%emt 0:10:40]} 26. Rfe1 {[%emt 0:00:24]} Qh6 {[%emt 0:01:25]} 27. Rc7 {[%emt 0:06:35]} Bg5 {[%emt 0:09:26]} 28. Ng1 {[%emt 0:02:34]} d5 {[%emt 0:05:21]} 29. Nh3 {[%emt 0:03:39]} d4 {[%emt 0:01:00]} 30. Nxg5 {[%emt 0:00:26]} Qxg5 {[%emt 0:00:11] [#]} 31. Qxf7+ $1 {[%emt 0:00:21]} Rxf7 {[%emt 0:00:55]} 32. Rxc8+ {[%emt 0:00:05]} Rf8 {[%emt 0:00:59]} 33. Bxe6+ {[%emt 0:00:05]} 1-0

[Event "WYCC 2018 O14"]
[Site "Halkidiki"]
[Date "2018.10.20"]
[Round "1"]
[White "Dardha, Daniel"]
[Black "Trushko, Andrii"]
[Result "1-0"]
[ECO "A05"]
[WhiteElo "2316"]
[BlackElo "1906"]
[Annotator "ChessBase"]
[PlyCount "159"]
[EventDate "2018.10.20"]
[EventType "swiss"]
[EventCountry "GRE"]
[SourceTitle "playchess.com"]
[Source "ChessBase"]
[SourceQuality "1"]
[TimeControl "40/5400+30:1800+30"]

1. Nf3 {[%emt 0:00:00]} Nf6 {[%emt 0:00:05]} 2. g3 {[%emt 0:00:25]} d5 {[%emt 0:00:46]} 3. Bg2 {[%emt 0:00:32]} c5 {[%emt 0:00:57]} 4. O-O {[%emt 0:00:59]} Nc6 {[%emt 0:01:02]} 5. d4 {[%emt 0:00:16]} cxd4 {[%emt 0:01:53]} 6. Nxd4 {[%emt 0:00:05]} e5 {[%emt 0:01:39]} 7. Nxc6 {[%emt 0:00:07]} bxc6 {[%emt 0:00:01]} 8. c4 {[%emt 0:00:55]} Be7 {[%emt 0:04:41]} 9. Nc3 {[%emt 0:00:47]} Be6 {[%emt 0:02:54]} 10. Bg5 {[%emt 0:00:41]} e4 {[%emt 0:01:55]} 11. Qa4 {[%emt 0:05:37]} Bd7 {[%emt 0:07:32]} 12. Rad1 {[%emt 0:21:06]} O-O {[%emt 0:21:09]} 13. Qa6 {[%emt 0:06:12]} Be6 {[%emt 0:24:28]} 14. Qxc6 {[%emt 0:21:13]} Rc8 {[%emt 0:00:20]} 15. Qb7 {[%emt 0:14:13]} Rc7 {[%emt 0:01:02]} 16. Qb5 {[%emt 0:04:49]} Rc5 {[%emt 0:00:29]} 17. Qb3 {[%emt 0:00:08]} d4 {[%emt 0:07:19]} 18. Bxf6 {[%emt 0:01:20]} Bxf6 {[%emt 0:00:01]} 19. Nxe4 {[%emt 0:00:16]} Rxc4 {[%emt 0:01:10]} 20. Nxf6+ {[%emt 0:03:43]} Qxf6 {[%emt 0:00:10]} 21. Qd3 {[%emt 0:01:38]} Rfc8 {[%emt 0:01:42]} 22. Rd2 {[%emt 0:01:27]} g6 {[%emt 0:00:44]} 23. Rfd1 {[%emt 0:01:44]} Qe5 {[%emt 0:02:38]} 24. Qa3 {[%emt 0:01:26]} a5 {[%emt 0:00:27]} 25. Bf1 Rb4 {[%emt 0:00:38]} 26. b3 {[%emt 0:02:07]} h6 {[%emt 0:01:30]} 27. Qb2 {[%emt 0:01:35]} a4 {[%emt 0:00:39]} 28. Rxd4 {[%emt 0:00:34]} Kh7 {[%emt 0:00:35]} 29. Qd2 {[%emt 0:05:00]} Rxd4 {[%emt 0:00:12]} 30. Qxd4 {[%emt 0:00:06]} Qxd4 {[%emt 0:00:05]} 31. Rxd4 {[%emt 0:00:04]} axb3 {[%emt 0:00:03]} 32. axb3 {[%emt 0:00:06]} Bxb3 {[%emt 0:00:04]} 33. e4 {[%emt 0:00:35]} Be6 {[%emt 0:00:30]} 34. Rd2 {[%emt 0:01:56]} Rc1 {[%emt 0:00:43]} 35. Kg2 {[%emt 0:00:16]} Bh3+ {[%emt 0:01:51]} 36. Kxh3 {[%emt 0:00:06]} Rxf1 {[%emt 0:00:03]} 37. Kg2 {[%emt 0:00:29]} Re1 {[%emt 0:00:06]} 38. f3 {[%emt 0:00:08]} Kg7 {[%emt 0:00:32]} 39. Kf2 {[%emt 0:00:39]} Ra1 {[%emt 0:01:08]} 40. f4 {[%emt 0:00:00]} Ra7 {[%emt 0:00:00]} 41. Kf3 {[%emt 0:03:28]} Rb7 {[%emt 0:02:48]} 42. Rd6 {[%emt 0:02:08]} h5 {[%emt 0:00:51]} 43. Kg2 {[%emt 0:07:52]} Rb2+ {[%emt 0:01:23]} 44. Kh3 {[%emt 0:00:27]} Rb7 {[%emt 0:00:33]} 45. e5 {[%emt 0:01:32]} Ra7 {[%emt 0:00:30]} 46. Kh4 {[%emt 0:00:37]} Ra2 {[%emt 0:00:32]} 47. h3 {[%emt 0:01:55]} Ra7 {[%emt 0:00:17]} 48. Kg5 {[%emt 0:03:33]} Ra3 {[%emt 0:01:23]} 49. Kh4 {[%emt 0:00:33]} Ra7 {[%emt 0:00:05]} 50. g4 {[%emt 0:00:31]} hxg4 {[%emt 0:00:03]} 51. hxg4 {[%emt 0:00:06]} Rb7 {[%emt 0:03:30]} 52. Kg5 {[%emt 0:00:39]} Ra7 {[%emt 0:00:22]} 53. Rd8 {[%emt 0:06:31]} Re7 {[%emt 0:00:40]} 54. Rb8 {[%emt 0:01:34]} Re6 {[%emt 0:00:30]} 55. Rb7 {[%emt 0:00:24]} Re8 {[%emt 0:00:05]} 56. Rb6 {[%emt 0:01:41]} Re7 {[%emt 0:00:11]} 57. Kh4 {[%emt 0:01:52]} Re8 {[%emt 0:00:15]} 58. Rb5 {[%emt 0:01:03]} Re7 {[%emt 0:02:23]} 59. f5 {[%emt 0:00:47]} gxf5 {[%emt 0:00:06]} 60. gxf5 {[%emt 0:00:04]} Rc7 {[%emt 0:00:46]} 61. Kh5 {[%emt 0:04:20]} Rc1 {[%emt 0:01:33]} 62. f6+ {[%emt 0:00:58]} Kh7 {[%emt 0:00:12]} 63. Rb7 {[%emt 0:00:48]} Rh1+ {[%emt 0:00:05]} 64. Kg5 {[%emt 0:00:05]} Rg1+ {[%emt 0:00:07]} 65. Kf5 {[%emt 0:00:47]} Rf1+ {[%emt 0:00:04]} 66. Ke4 {[%emt 0:00:42]} Kg6 {[%emt 0:00:04]} 67. Kd5 {[%emt 0:01:17]} Rd1+ {[%emt 0:00:16]} 68. Kc6 {[%emt 0:00:05]} Rc1+ {[%emt 0:00:22]} 69. Kd7 {[%emt 0:01:05]} Rc5 {[%emt 0:01:14]} 70. e6 {[%emt 0:02:46]} fxe6 {[%emt 0:15:35]} 71. Ke7 {[%emt 0:00:05]} e5 {[%emt 0:07:05]} 72. f7 {[%emt 0:00:21]} Rc8 {[%emt 0:00:06]} 73. f8=Q {[%emt 0:00:37]} Rxf8 {[%emt 0:00:03]} 74. Kxf8 {[%emt 0:00:08]} Kf5 {[%emt 0:00:04]} 75. Ke7 {[%emt 0:00:17]} e4 {[%emt 0:00:18]} 76. Kd6 {[%emt 0:00:06]} e3 {[%emt 0:00:10]} 77. Re7 {[%emt 0:00:08]} Kf4 {[%emt 0:00:08]} 78. Kd5 {[%emt 0:00:03]} Kf3 {[%emt 0:00:04]} 79. Kd4 {[%emt 0:00:04]} e2 {[%emt 0:00:07]} 80. Kd3 {[%emt 0:00:01]} 1-0

[Event "WYCC 2018 O14"]
[Site "Halkidiki"]
[Date "2018.10.20"]
[Round "1"]
[White "Gharibyan, Mamikon"]
[Black "Kouvidis, Ioannis"]
[Result "1-0"]
[ECO "E73"]
[WhiteElo "2314"]
[BlackElo "1896"]
[Annotator "NA"]
[PlyCount "55"]
[EventDate "2018.10.20"]
[EventType "swiss"]
[EventCountry "GRE"]
[SourceTitle "playchess.com"]
[Source "ChessBase"]
[SourceQuality "1"]
[TimeControl "40/5400+30:1800+30"]

1. d4 {[%emt 0:00:00]} Nf6 {[%emt 0:00:00]} 2. c4 {[%emt 0:00:00]} g6 {[%emt 0:00:00]} 3. Nc3 {[%emt 0:00:07]} Bg7 {[%emt 0:00:00]} 4. e4 {[%emt 0:00:10]} d6 {[%emt 0:00:00]} 5. Be2 {[%emt 0:00:31]} O-O {[%emt 0:01:09]} 6. Be3 {[%emt 0:00:35]} c5 {[%emt 0:03:54]} 7. d5 {[%emt 0:01:42]} e6 {[%emt 0:19:24]} 8. Nf3 {[%emt 0:00:08]} exd5 {[%emt 0:00:21]} 9. cxd5 {[%emt 0:00:29]} Re8 {[%emt 0:01:03]} 10. Nd2 {[%emt 0:00:31]} Na6 {[%emt 0:05:45]} 11. O-O {[%emt 0:03:28]} Nc7 {[%emt 0:01:01]} 12. a4 {[%emt 0:09:50]} b6 {[%emt 0:07:27]} 13. Re1 {[%emt 0:13:13]} Rb8 {[%emt 0:05:59]} 14. Rb1 {[%emt 0:06:37]} a6 {[%emt 0:04:11]} 15. b4 {[%emt 0:04:36]} Ng4 {[%emt 0:02:46]} 16. Bxg4 $16 {[%emt 0:03:12]} Bxg4 {[%emt 0:01:49]} 17. Qxg4 {[%emt 0:03:16]} Bxc3 {[%emt 0:00:08]} 18. bxc5 {[%emt 0:01:57]} bxc5 {[%emt 0:06:36]} 19. Rxb8 {[%emt 0:01:21]} Qxb8 {[%emt 0:00:03]} 20. Rb1 {[%emt 0:01:42]} Qd8 {[%emt 0:03:41]} 21. Nc4 {[%emt 0:01:18]} Qe7 {[%emt 0:03:22]} 22. Rb3 {[%emt 0:25:32]} Bd4 {[%emt 0:10:32]} 23. Rb7 {[%emt 0:01:30]} h5 {[%emt 0:06:48]} 24. Qf4 {[%emt 0:03:07]} Bxe3 {[%emt 0:00:07]} 25. fxe3 {[%emt 0:03:04]} g5 {[%emt 0:07:36]} 26. Qf5 {[%emt 0:06:55]} f6 {[%emt 0:05:53]} 27. Qg6+ {[%emt 0:02:16]} Kf8 {[%emt 0:00:06]} 28. e5 {[%emt 0:00:28]} 1-0